Cogmind - Beta 14 @@@ ROGUE MODE // 2024.09.07 @ 12:36:16 Player: Bardic Entropy Result: Self-destructed Performance ------------- Evolutions (2) 1000 Regions Visited (6) 1200 Robots Destroyed (41) 205 Value Destroyed (880) 880 Prototype IDs (2) 40 Alien Tech Used (0) 0 Bonus (0) 0 TOTAL SCORE: 3325 Bonus ------- None Cogmind --------- Core Integrity 484/550 Matter 202/300 Energy 275/275 System Corruption 0% Temperature Warning (325) Movement Treading (320) Ox2 Location -8/Materials Parts ------- > --- POWER (1) -------- Deuterium Engine > --- PROPULSION (2) --- Light Treads > --- UTILITY (4) ------ Large Storage Unit Improved Signal Interpreter Seismic Detector Hacking Suite > --- WEAPON (4) ------- Beam Cannon Heavy Assault Rifle Improved Light Cannon Flail > --- INVENTORY (15) --- Light Treads Wheel Wheel High-capacity Storage Unit High-capacity Matter Pod (200) Structural Scanner Signal Interpreter Light Assault Rifle Grenade Launcher Peak State ------------ > --- POWER ------------ Deuterium Engine > --- PROPULSION ------- Light Treads Light Treads > --- UTILITY ---------- Large Storage Unit Improved Signal Interpreter Seismic Detector Hacking Suite > --- WEAPON ----------- Beam Cannon Heavy Assault Rifle Improved Light Cannon Flail > --- INVENTORY -------- Light Ion Engine Light Treads Wheel Wheel High-capacity Storage Unit High-capacity Matter Pod Structural Scanner Signal Interpreter Light Assault Rifle Grenade Launcher [Rating: 21] Favorites ----------- Power Light Ion Engine Engine Light Ion Engine Propulsion Light Treads Treads Light Treads Leg Aluminum Leg Wheel Compact Wheel Utility Large Storage Unit Device Seismic Detector Storage Large Storage Unit Processor Signal Interpreter Hackware Hacking Suite Weapon Beam Cannon Energy Gun Medium Laser Energy Cannon Beam Cannon Ballistic Gun Light Assault Rifle Ballistic Cannon Light Cannon Impact Weapon Flail Build | -11 -10 -9 -9 -9 -8 -8 ------- Run | Yrd Mat Mat Min Exi Min Mat Slots Evolved 4 | . . 2 . . . 2 Power . | . . . . . . . Propulsion . | . . . . . . . Utility 2 | . . 1 . . . 1 Weapon 2 | . . 1 . . . 1 Parts Attached 38 | 9 11 6 1 . 1 10 Power 7 | 1 3 . . . 1 2 Engine 7 | 1 3 . . . 1 2 Core . | . . . . . . . Reactor . | . . . . . . . Propulsion 9 | 4 4 . . . . 1 Treads 5 | 2 2 . . . . 1 Leg 2 | 2 . . . . . . Wheel 2 | . 2 . . . . . Hover . | . . . . . . . Flight . | . . . . . . . Utility 13 | 2 2 4 . . . 5 Device 8 | 1 . 4 . . . 3 Storage 2 | 1 1 . . . . . Processor 2 | . 1 . . . . 1 Hackware 1 | . . . . . . 1 Protection . | . . . . . . . Artifact . | . . . . . . . Weapon 9 | 2 2 2 1 . . 2 Energy Gun 1 | 1 . . . . . . Energy Cannon 2 | . 1 1 . . . . Ballistic Gun 3 | 1 . . . . . 2 Ballistic Cannon 2 | . 1 . 1 . . . Launcher . | . . . . . . . Special Weapon . | . . . . . . . Impact Weapon 1 | . . 1 . . . . Slashing Weapon . | . . . . . . . Piercing Weapon . | . . . . . . . Special Melee Weapon . | . . . . . . . Unidentified Prototypes . | . . . . . . . Parts Lost 3 | . . 1 . . . 2 Power 2 | . . 1 . . . 1 Propulsion 1 | . . . . . . 1 Utility . | . . . . . . . Weapon . | . . . . . . . Highest Loss Streak 1 | . . 1 . . . 1 To Critical Strikes . | . . . . . . . Average Slot Usage (%) 96 | . 99 91 88 88 97 98 Engine 9 | . 13 4 . . 8 7 Treads 18 | . 15 22 22 22 22 17 Leg 2 | . 5 . . . . . Wheel 3 | . 7 . . . . . Device 9 | . 7 11 11 11 11 9 Storage 12 | . 14 11 11 11 11 9 Processor 8 | . 6 11 11 11 11 9 Hackware 1 | . . . . . . 8 Energy Gun 2 | . 5 . . . . . Energy Cannon 9 | . 8 11 11 11 11 9 Ballistic Gun 3 | . 4 . . . . 9 Ballistic Cannon 9 | . 9 11 11 11 11 9 Impact Weapon 5 | . . 9 11 11 11 9 Peak Build Rating 21 | 7 8 10 10 10 12 21 Average Rating 9 | 5 6 9 9 10 11 16 On Entrance 7 | . 7 7 9 10 10 12 Naked Turns . | . . . . . . . Heaviest Build 42 | 12 32 32 30 30 33 42 Greatest Support 40 | 40 40 40 40 40 40 40 Greatest Overweight (x) 3 | . 3 . . . . 1 Average Overweight (x) . | . . . . . . . Largest Inventory Capacity 15 | 8 15 15 15 15 15 15 Average Capacity 14 | 7 13 15 15 15 15 15 Most Carried 10 | 4 10 8 9 9 10 10 Average Carried 7 | 2 6 7 8 9 9 8 Final Capacity 15 | 8 15 15 15 15 15 15 Final Carried 10 | 4 8 7 9 9 10 9 Class Distribution -------------------- 85% | Mutant 11% | Scavenger-Gunner Dominant Class ---------------- Mutant | -10/Materials Mutant | -9/Materials Mutant | -9/Mines Mutant | -9/Exiles Mutant | -8/Mines Scavenger-Gunner | -8/Materials Resources | -11 -10 -9 -9 -9 -8 -8 ----------- Run | Yrd Mat Mat Min Exi Min Mat Matter Collected 1216 | 295 434 160 52 . 30 245 Remotely . | . . . . . . . Salvage Created 1095 | 144 399 147 26 . 29 350 Parts 84 | 6 31 4 6 . 6 31 Haulers Intercepted 2 | . 2 . . . . . Recyclers Shooed 1 | . 1 . . . . . Parts Field Recycled . | . . . . . . . Retrieved Matter . | . . . . . . . Parts Self-Destructed . | . . . . . . . Prevented . | . . . . . . . Kills | -11 -10 -9 -9 -9 -8 -8 ------- Run | Yrd Mat Mat Min Exi Min Mat Combat Hostiles Destroyed 26 | . 10 4 . . 3 9 Guns 7 | . 5 . . . . 2 Cannons 17 | . 5 4 . . 3 5 AOE 2 | . . . . . . 2 Classes Destroyed 10 | 2 4 1 . . . 3 Builder 1 | . . . . . . 1 Tunneler 4 | 2 . . 2 . . . Hauler 2 | . 2 . . . . . Recycler 1 | 1 . . . . . . Mechanic 1 | . . . . . . 1 Operator 1 | . . . . . . 1 Watcher 5 | . 3 . . . . 2 Swarmer 13 | . 6 . . . 3 4 Grunt 11 | . 4 3 . . . 4 Sentry 2 | . . 1 . . . 1 Best Kill Streak 5 | 2 4 3 1 . 3 5 Combat Bots Only 5 | . 4 3 . . 3 5 Max Kills in Single Turn 4 | 1 1 1 1 . 1 4 Gunslinging . | . . . . . . . Exploded 2 | . . . . . . 2 Melee . | . . . . . . . Uniques/NPCs Destroyed . | . . . . . . . Combat | -11 -10 -9 -9 -9 -8 -8 -------- Run | Yrd Mat Mat Min Exi Min Mat Hostile Shots Fired 101 | . 27 31 . . 16 27 Missed 17 | . 7 7 . . 1 2 Damage Taken 1088 | . 206 330 . . 118 434 Core 158 | . 49 21 . . 22 66 Absorbed by Shields . | . . . . . . . Core Remaining (%) 89 | 100 80 . . . 89 . Volleys Fired 105 | 5 44 17 2 . 5 32 Largest 3 | 2 2 2 2 . 2 3 Hottest 122 | 70 95 95 99 . 99 122 Shots Fired 242 | 10 88 34 4 . 10 96 Gun 97 | 10 55 . . . . 32 Cannon 145 | . 33 34 4 . 10 64 Launcher . | . . . . . . . Special . | . . . . . . . Kinetic 137 | 5 44 17 2 . 5 64 Thermal 105 | 5 44 17 2 . 5 32 Explosive . | . . . . . . . Electromagnetic . | . . . . . . . Robot Hit Streak 17 | 4 11 17 3 . 3 5 Robot Miss Streak 5 | 1 3 3 . . 2 5 Penetration Max . | . . . . . . . Secondary Targets . | . . . . . . . Shots Hit Robots 134 | 7 58 21 2 . 5 41 Core Hits 58 | 4 20 6 2 . 3 23 Critical Kills . | . . . . . . . Critical Parts Destroyed . | . . . . . . . Critical Strikes 4 | 1 3 . . . . . Burn 4 | 1 3 . . . . . Melee Attacks 3 | . . 3 . . . . Impact 3 | . . 3 . . . . Slashing . | . . . . . . . Piercing . | . . . . . . . Sneak Attacks . | . . . . . . . Combat Hostiles . | . . . . . . . Follow-up Attacks . | . . . . . . . Damage Inflicted 2587 | 72 728 363 34 . 97 1293 Guns 765 | 72 431 . . . . 262 Cannons 1320 | . 297 363 34 . 97 529 Explosions 502 | . . . . . . 502 Melee . | . . . . . . . Ramming . | . . . . . . . Kinetic 1055 | 23 290 168 . . 63 511 Thermal 1030 | 49 438 195 34 . 34 280 Explosive 502 | . . . . . . 502 Electromagnetic . | . . . . . . . Impact . | . . . . . . . Slashing . | . . . . . . . Piercing . | . . . . . . . Highest Corruption . | . . . . . . . Average Corruption . | . . . . . . . Corruption Purged . | . . . . . . . Corruption Blocked . | . . . . . . . Overload Shots . | . . . . . . . Overflow Damage 3 | . 1 . . . 2 . Projectiles 3 | . 1 . . . 2 . Explosions . | . . . . . . . Melee . | . . . . . . . Knockbacks 4 | . . 2 . . 1 1 Impact . | . . . . . . . Kinetic 4 | . . 2 . . 1 1 Secondary . | . . . . . . . Self-Inflicted Damage 113 | . . . . . . 113 Shots 2 | . . . . . . 2 Rammed . | . . . . . . . Targets Rammed . | . . . . . . . Kicked . | . . . . . . . Crushed . | . . . . . . . Highest Temperature 316 | 50 164 139 15 . 75 316 Average Temperature 57 | 24 50 64 10 . 39 71 Received Heat Transfer 330 | . 60 135 . . . 135 Effects 1 | . . . . . . 1 Matter Decay 1 | . . . . . . 1 Siege Activations . | . . . . . . . Robots Corrupted . | . . . . . . . Combat Hostiles . | . . . . . . . Parts Fried . | . . . . . . . Impact Corruptions . | . . . . . . . Robots Melted . | . . . . . . . Combat Hostiles . | . . . . . . . Parts Melted 4 | . 3 . . . . 1 Heat Transferred 2775 | 222 1406 407 74 . 74 592 Parts Sabotaged . | . . . . . . . Parts Stolen . | . . . . . . . Parts Stripped . | . . . . . . . Power Chain Reactions . | . . . . . . . Alert | -11 -10 -9 -9 -9 -8 -8 ------- Run | Yrd Mat Mat Min Exi Min Mat Peak Influence 230 | 15 230 180 80 . 70 218 Initial 70 | . 9 . 70 . . 27 Average 84 | 6 82 68 75 . 59 133 Maximum Alert Level 1 | . 1 . . . . 1 Low Security (%) 89 | 100 93 100 100 . 100 54 Level 1 10 | . 6 . . . . 45 Level 2 . | . . . . . . . Level 3 . | . . . . . . . Level 4 . | . . . . . . . Level 5 . | . . . . . . . High Security . | . . . . . . . Max Security . | . . . . . . . Squads Dispatched 4 | . 2 . . . . 2 Investigation 2 | . 2 . . . . . Extermination . | . . . . . . . Reinforcement 2 | . . . . . . 2 Assault . | . . . . . . . Garrison . | . . . . . . . Intercept . | . . . . . . . Searches Triggered . | . . . . . . . Construction Impeded . | . . . . . . . Haulers Reinforced . | . . . . . . . Active Scanning Responses . | . . . . . . . Cargo Convoy Interrupts . | . . . . . . . Stealth | -11 -10 -9 -9 -9 -8 -8 --------- Run | Yrd Mat Mat Min Exi Min Mat Distress Signals 2 | . 1 1 . . . . Communications Jammed . | . . . . . . . Distress Signals . | . . . . . . . Times Spotted 46 | . 17 8 1 . 3 17 Peak Tracking Total 5 | . 5 5 4 . 3 4 Tactical Retreats 3 | . 2 1 . . . . Traps | -11 -10 -9 -9 -9 -8 -8 ------- Run | Yrd Mat Mat Min Exi Min Mat Traps Triggered 1 | . 1 . . . . . Indirectly . | . . . . . . . Trap Hack Attempts . | . . . . . . . Triggered . | . . . . . . . Disarmed . | . . . . . . . Reprogrammed . | . . . . . . . Reused . | . . . . . . . Traps Extracted . | . . . . . . . Installed . | . . . . . . . Triggered . | . . . . . . . Machines | -11 -10 -9 -9 -9 -8 -8 ---------- Run | Yrd Mat Mat Min Exi Min Mat Machines Disabled 2 | . . . . . . 2 Max in Single Turn 2 | . . . . . . 2 Machines Repaired . | . . . . . . . Machines Dismantled . | . . . . . . . Machines Sabotaged . | . . . . . . . Overloaded Fab Kills . | . . . . . . . Hacking | -11 -10 -9 -9 -9 -8 -8 --------- Run | Yrd Mat Mat Min Exi Min Mat Machines Accessed 11 | . 8 1 . . . 2 Terminals 10 | . 7 1 . . . 2 Fabricators . | . . . . . . . Repair Stations . | . . . . . . . Recycling Units 1 | . 1 . . . . . Scanalyzers . | . . . . . . . Garrison Access . | . . . . . . . Total Hacks 35 | . 24 6 . . . 5 Successful 20 | . 15 3 . . . 2 Failed 15 | . 9 3 . . . 3 Catastrophic 2 | . 1 . . . . 1 Database Lockouts . | . . . . . . . Manual 35 | . 23 6 . 1 . 5 Terminals 34 | . 23 6 . . . 5 Fabricators . | . . . . . . . Repair Stations . | . . . . . . . Recycling Units 1 | . 1 . . . . . Scanalyzers . | . . . . . . . Garrison Access . | . . . . . . . Terminal Hacks 3 | . 3 . . . . . Robot Analysis 1 | . 1 . . . . . Prototype ID Bank 1 | . 1 . . . . . Locate Traps 1 | . 1 . . . . . Fabricator Hacks . | . . . . . . . Repair Station Hacks . | . . . . . . . Recycling Unit Hacks . | . . . . . . . Scanalyzer . | . . . . . . . Garrison Access Hacks . | . . . . . . . Unauthorized Hacks 17 | . 12 3 . . . 2 Terminals 16 | . 11 3 . . . 2 Botnet 8 | . 6 1 . . . 1 Operators 1 | . . 1 . . . . Skim 7 | . 5 1 . . . 1 Fabricators . | . . . . . . . Repair Stations . | . . . . . . . Recycling Units 1 | . 1 . . . . . Tunnel 1 | . 1 . . . . . Scanalyzers . | . . . . . . . Garrison Access . | . . . . . . . Data Cores Recovered 1 | . . . . . . 1 Used . | . . . . . . . Hacking Detections 10 | . 7 1 . . . 2 Full Trace Events . | . . . . . . . Feedback Events . | . . . . . . . Feedback Blocked . | . . . . . . . Robot Schematics Acquired . | . . . . . . . Robots Built . | . . . . . . . Authchips . | . . . . . . . Time . | . . . . . . . Total Robot Build Rating . | . . . . . . . Part Schematics Acquired . | . . . . . . . Parts Built . | . . . . . . . Authchips . | . . . . . . . Time . | . . . . . . . Total Part Build Rating . | . . . . . . . Parts Repaired . | . . . . . . . Time . | . . . . . . . Parts Recycled . | . . . . . . . Recycled Matter . | . . . . . . . Retrieved Matter . | . . . . . . . Retrieved Components . | . . . . . . . Parts Scanalyzed . | . . . . . . . Part Schematics Acquired . | . . . . . . . Parts Damaged . | . . . . . . . Bothacking | -11 -10 -9 -9 -9 -8 -8 ------------ Run | Yrd Mat Mat Min Exi Min Mat Used RIF Installer . | . . . . . . . Robots Hacked . | . . . . . . . Non-combat . | . . . . . . . Combat . | . . . . . . . Robot Hacks Applied . | . . . . . . . Relay Couplers Released . | . . . . . . . Fabnet Peak Effective % . | . . . . . . . Robots Rewired . | . . . . . . . Allies Hacked . | . . . . . . . Hacks Repelled . | . . . . . . . Allies | -11 -10 -9 -9 -9 -8 -8 -------- Run | Yrd Mat Mat Min Exi Min Mat Total Allies . | . . . . . . . Largest Group . | . . . . . . . Highest-Rated Group . | . . . . . . . Highest-Rated Ally . | . . . . . . . Total Orders . | . . . . . . . Ally Attacks . | . . . . . . . Total Damage . | . . . . . . . Kills . | . . . . . . . Allies Corrupted . | . . . . . . . Allies Melted . | . . . . . . . Intel | -11 -10 -9 -9 -9 -8 -8 ------- Run | Yrd Mat Mat Min Exi Min Mat Robot Analysis Total 1 | . 1 . . . . . Derelict Logs Recovered 1 | . . . 1 . . . Drone Launches . | . . . . . . . Drone Recoveries . | . . . . . . . Exploration | -11 -10 -9 -9 -9 -8 -8 ------------- Run | Yrd Mat Mat Min Exi Min Mat Turns Passed 3490 | 97 1655 378 236 321 282 521 Spaces Moved 1953 | 53 997 177 142 201 166 217 Core 1 | 1 . . . . . . Treads 1274 | 8 363 177 142 201 166 217 Legs 263 | 44 219 . . . . . Wheels 415 | . 415 . . . . . Hover . | . . . . . . . Flight . | . . . . . . . Fastest Speed 50 | 50 110 160 160 160 160 160 Average Speed 148 | 124 138 160 160 160 160 166 Slowest Speed 240 | 160 240 160 160 160 160 240 Overloaded Moves . | . . . . . . . Propulsion Burnouts . | . . . . . . . Robots Hopped . | . . . . . . . Cave-ins Triggered . | . . . . . . . Exploration Rate (%) 41 | 5 99 26 34 60 52 16 Regions Visited 6 Branch Regions 3 Pre-discovered Areas 3 | . 3 . . . . . Known Exits Taken 5 | . 1 1 1 1 1 . Unknown Exits Taken 1 | 1 . . . . . . Scrap Searched 2 | . . . 2 . . . Spaces Dug 3 | . . 3 . . . . Terrain Destroyed 44 | . . 3 . . . 41 Melee 3 | . . 3 . . . . Projectile 5 | . . . . . . 5 AOE 36 | . . . . . . 36 Terrain Rammed . | . . . . . . . Walls Destroyed . | . . . . . . . Machines Disabled . | . . . . . . . Actions | -11 -10 -9 -9 -9 -8 -8 --------- Run | Yrd Mat Mat Min Exi Min Mat Total 2315 | 72 1189 232 147 200 172 303 Wait 182 | 1 112 28 . . . 41 Move 1947 | 52 996 176 141 200 165 217 Hop . | . . . . . . . Pick Up 21 | 3 13 1 2 . 1 1 Fast Attach 11 | 8 1 . . . 1 1 Attach 6 | 1 1 2 . . . 2 Detach 2 | 2 . . . . . . Swap 21 | . 9 4 1 . . 7 Drop 17 | . 13 1 1 . . 2 Fire 105 | 5 44 17 2 . 5 32 Melee 3 | . . 3 . . . . Ram . | . . . . . . . Kick . | . . . . . . . Crush . | . . . . . . . Escape Stasis . | . . . . . . . Rewire . | . . . . . . . Trap . | . . . . . . . Miscellaneous . | . . . . . . . Route ------- -11/Scrapyard -10/Materials (discovered 5 exits: *Mat x3 / *Min / Sub) -9/Materials (discovered 4 exits: Mat x3 / *Min) -9/Mines (discovered 2 exits: Mat / *Exi) -9/Exiles -8/Mines -8/Materials (discovered 1 exit: Sto) History --------- Turn | Location | Event 16 | -11/Scrapyard | Discovered new exit (range 15) 98 | -11/Scrapyard | Entered Materials 309 | -10/Materials | Build established: Mutant 381 | -10/Materials | Discovered new exit (range 13) 563 | -10/Materials | Discovered new exit (range 16) 954 | -10/Materials | Discovered new exit (range 5) 1030 | -10/Materials | Identified exit to Materials 1092 | -10/Materials | Identified exit to Mines 1292 | -10/Materials | Discovered exit to Materials (range 16) 1546 | -10/Materials | Learned location of 2 exits from Mines 1597 | -10/Materials | Learned Storage stockpile data 1636 | -10/Materials | Learned location of Storage (-8) 1667 | -10/Materials | Identified exit to Subcaves 1667 | -10/Materials | Learned location of 2 exits from Materials 1686 | -10/Materials | Learned location of 2 exits from Materials 1694 | -10/Materials | Learned location of 1 exit from Recycling 1703 | -10/Materials | Learned location of Recycling (-8) 1722 | -10/Materials | Learned location of 2 exits from Subcaves 1753 | -10/Materials | Entered another Materials area 1753 | -9/Materials | Evolved 2 slots: Utility x1, Weapon x1 1754 | -9/Materials | Identified exit to Materials 1754 | -9/Materials | Identified exit to Mines 2131 | -9/Materials | Entered Mines 2132 | -9/Mines | Identified exit to Exiles 2143 | -9/Mines | Learned Materials garrison access intel 2192 | -9/Mines | YI-UF0 nonchalantly dropped a Grenade Launcher on the ground 2359 | -9/Mines | Deemed a non-threat by the Exiles lab entrance 2367 | -9/Mines | Entered Exiles 2367 | -9/Exiles | Found Exiles lab abandoned 2673 | -9/Exiles | Discovered new exit (range 11) 2686 | -9/Exiles | Identified exit to Mines 2688 | -9/Exiles | Entered Mines 2951 | -8/Mines | Discovered exit to Materials (range 13) 2970 | -8/Mines | Entered Materials 2970 | -8/Materials | Evolved 2 slots: Utility x1, Weapon x1 2971 | -8/Materials | Identified exit to Storage 2972 | -8/Materials | Loaded intel: 1 garrison access location 3464 | -8/Materials | Build established: Scavenger-Gunner 3491 | -8/Materials | Self-destructed Last Messages --------------- 03473_ K-01 Serf collects debris. 03473_ U-05 Engineer lays Concrete. 03475_ The unstable cave ceiling collapses. 03476_ T-07 Excavator is excavating. 03476_ U-05 Engineer builds a Wall. 03477_ K-01 Serf collects debris. 03480_ T-07 Excavator is excavating. 03480_ U-05 Engineer builds a Wall. 03481_ K-01 Serf collects debris. 03483_ Lgt. Treads destroyed. 03484_ U-05 Engineer builds a Wall. 03484_ K-01 Serf collects debris. 03485_ The unstable cave ceiling collapses. 03485_ G-47 Trooper destroyed. 03485_ T-07 Excavator is excavating. 03485_ U-05 Engineer builds a Wall. 03489_ T-07 Excavator is excavating. 03489_ K-01 Serf collects debris. 03489_ U-05 Engineer builds a Wall. 03491_ Overheating: Matter decay (-41). Map ----- +----------------------------------------------------+ | ?????????????????????????????????????????????????? | | ?????????????????????????????????????????????????? | | ?????????????????????????????????????????????????? | | ?????????????????????????????????????????????????? | | ?????????????????????????????????????????????????? | | ?????????????????????????????????????????????????? | | ?????????????????????????????????????????????????? | | ?????????????????????????????????????????????????? | | ?????????????????????????????????????????????????? | | ?????????????????????????????????????????????????? | | ?????????????????????##??????????????????????????? | | ?????????????????????# ?????????????????????????? | | ???????????????? "?#= ?????????????????????????? | | ????????????????? ""# ?????????????????????????? | | ?????????????????? # !?????????????????????????? | | ????????????????##### ####?????????????????????? | | ??????????????#?# !##????????????????????? | | ????????????T##a## #????????????????????? | | ???????????? ##???????????????????? | | ???????????? ######??????????????? | | ????????????? * * #??????????????? | | ???????????????# % ! #??????????????? | | ???????????????# =% """ #??????????????? | | ????????????????# k """ #??????????????? | | ????????????????# #### # """ #??????????????? | | ?????????????????## u @ # #??????????????? | | ????????????????# t ####+#########?????????? | | ????????????????## ???? | | ?????????????????# # ###########???????? | | ?????????????????######## # #???????? | | ????????????????????????#= + #???????? | | ??????????????????????###%g # % #???????? | | ??????????????? % # #???????? | | ??????????????????####### #### ###########???????? | | ????????????????????????# #??# #########?????????? | | ????????????????????????# #??# # ##?????????? | | ????????????????????????#g#??# # ##?????????? | | ???????????????????????? %#??# # """ ##?????????? | | ????????????????????????##???#=#= """ ##?????????? | | ?????????????????????????????#|# """ ##??######## | | ?????????????????????????????# # ##??######## | | ?????????????????????????????#*####+####### | | ?????????????????????????????#! | | ?????????????????????????????######+####### | | ????????????????????????????????#* = #####+##### | | ????????????????????????????????# = # # | | ????????????????????????????????# ""# # | | ????????????????????????????????# T"# """ ! ! | | ????????????????????????????????# ""# """ # | | ????????????????????????????????# # """ " # | +----------------------------------------------------+ Best States ------------- Heat Dissipation 31 Energy Generation 14 Energy Capacity 275 Matter Stores 300 Matter Capacity 300 Sight Range 16 Terrain Scan Density 10 Evasion (%) 55 Recoil Reduction 2 Offensive Hacking 10 Item Schematics ----------------- None Robot Schematics ------------------ None Fabricated ------------ Nothing Alien Tech Used ----------------- None Achievements -------------- None Challenges ------------ None Game ------ Seed UtilitySeismicComputer Manual? 0 Play Time 00:39:02 Cumulative 40.9 hours Start 2024.09.07 @ 11:38:17 End 2024.09.07 @ 12:36:16 Sessions 1 Manual Loads 0 Difficulty Rogue Special Mode None Game No. 44 Rogue 44 Adventurer 0 Explorer 0 Win Type - Total 0 Types 0/0/0/0/0/0/0/0/0 Lore% 14 Gallery% 20 Achievement% 21 Wizard Run 0 Options --------- Layout 0 ASCII 0 Keyboard 0 Movement Mouse Keybinds 0 Fullscreen 1 Font 16/TerminusTall Map View 75x55 Zoom Use 0% Tactical HUD 1 Map Filters NONE Filters NONE Steam 1 RUN: 3e52a0fc-b089-402e-9f9c-6bf4e63b2bef